{"text_format":"1","workbook":"xlsx","n_sheets":1,"sheets":["Sheet1"],"not_rendered":{"charts":0,"images":0,"macros":1,"external_links":0,"defined_names":1,"comments":0,"pivot_tables":0},"unopened":[],"bounds":{"document_bytes":16777216,"sheet_cells":100000,"rows_first":2000,"rows_last":500,"rows_between":2000,"halvings":0,"cell_chars":16384,"cell_head_chars":4096},"cells_cut":0,"cells_raw":0,"read":"whole","date_system":"1900"}

{"sheet":"Sheet1","index":0,"n_rows":1005,"n_cols":6,"rows_kept":1005,"cut":false,"hidden":false,"merged":[[0,0,0,1],[1,0,1,4]]}
[null,null,"FCC Form 481 OMB Control No. 3060-0986"]
["Template for Reporting Community Anchor Institutions (Lines 2018, 3012B, and 4003B)"]
[]
["Number","Name ","Street Address","State","Zip","Len B & C"]
[1,null,null,null,null,{"$f":"LEN(B5)+LEN(C5)","v":0}]
[{"$f":"A5+1","v":2},null,null,null,null,{"$f":"LEN(B6)+LEN(C6)","v":0}]
[{"$f":"A6+1","v":3},null,null,null,null,0]
[4,null,null,null,null,0]
[5,null,null,null,null,0]
[6,null,null,null,null,0]
[7,null,null,null,null,0]
[8,null,null,null,null,0]
[9,null,null,null,null,0]
[10,null,null,null,null,0]
[11,null,null,null,null,0]
[12,null,null,null,null,0]
[13,null,null,null,null,0]
[14,null,null,null,null,0]
[15,null,null,null,null,0]
[16,null,null,null,null,0]
[17,null,null,null,null,0]
[18,null,null,null,null,0]
[19,null,null,null,null,0]
[20,null,null,null,null,0]
[21,null,null,null,null,0]
[22,null,null,null,null,0]
[23,null,null,null,null,0]
[24,null,null,null,null,0]
[25,null,null,null,null,0]
[26,null,null,null,null,0]
[27,null,null,null,null,0]
[28,null,null,null,null,0]
[29,null,null,null,null,0]
[30,null,null,null,null,0]
[31,null,null,null,null,0]
[32,null,null,null,null,0]
[33,null,null,null,null,0]
[34,null,null,null,null,0]
[35,null,null,null,null,0]
[36,null,null,null,null,0]
[37,null,null,null,null,0]
[38,null,null,null,null,0]
[39,null,null,null,null,0]
[40,null,null,null,null,0]
[41,null,null,null,null,0]
[42,null,null,null,null,0]
[43,null,null,null,null,0]
[44,null,null,null,null,0]
[45,null,null,null,null,0]
[46,null,null,null,null,0]
[47,null,null,null,null,0]
[48,null,null,null,null,0]
[49,null,null,null,null,0]
[50,null,null,null,null,0]
[51,null,null,null,null,0]
[52,null,null,null,null,0]
[53,null,null,null,null,0]
[54,null,null,null,null,0]
[55,null,null,null,null,0]
[56,null,null,null,null,0]
[57,null,null,null,null,0]
[58,null,null,null,null,0]
[59,null,null,null,null,0]
[60,null,null,null,null,0]
[61,null,null,null,null,0]
[62,null,null,null,null,0]
[63,null,null,null,null,0]
[64,null,null,null,null,0]
[65,null,null,null,null,0]
[66,null,null,null,null,{"$f":"LEN(B70)+LEN(C70)","v":0}]
[{"$f":"A70+1","v":67},null,null,null,null,0]
[68,null,null,null,null,0]
[69,null,null,null,null,0]
[70,null,null,null,null,0]
[71,null,null,null,null,0]
[72,null,null,null,null,0]
[73,null,null,null,null,0]
[74,null,null,null,null,0]
[75,null,null,null,null,0]
[76,null,null,null,null,0]
[77,null,null,null,null,0]
[78,null,null,null,null,0]
[79,null,null,null,null,0]
[80,null,null,null,null,0]
[81,null,null,null,null,0]
[82,null,null,null,null,0]
[83,null,null,null,null,0]
[84,null,null,null,null,0]
[85,null,null,null,null,0]
[86,null,null,null,null,0]
[87,null,null,null,null,0]
[88,null,null,null,null,0]
[89,null,null,null,null,0]
[90,null,null,null,null,0]
[91,null,null,null,null,0]
[92,null,null,null,null,0]
[93,null,null,null,null,0]
[94,null,null,null,null,0]
[95,null,null,null,null,0]
[96,null,null,null,null,0]
[97,null,null,null,null,0]
[98,null,null,null,null,0]
[99,null,null,null,null,0]
[100,null,null,null,null,0]
[101,null,null,null,null,0]
[102,null,null,null,null,0]
[103,null,null,null,null,0]
[104,null,null,null,null,0]
[105,null,null,null,null,0]
[106,null,null,null,null,0]
[107,null,null,null,null,0]
[108,null,null,null,null,0]
[109,null,null,null,null,0]
[110,null,null,null,null,0]
[111,null,null,null,null,0]
[112,null,null,null,null,0]
[113,null,null,null,null,0]
[114,null,null,null,null,0]
[115,null,null,null,null,0]
[116,null,null,null,null,0]
[117,null,null,null,null,0]
[118,null,null,null,null,0]
[119,null,null,null,null,0]
[120,null,null,null,null,0]
[121,null,null,null,null,0]
[122,null,null,null,null,0]
[123,null,null,null,null,0]
[124,null,null,null,null,0]
[125,null,null,null,null,0]
[126,null,null,null,null,0]
[127,null,null,null,null,0]
[128,null,null,null,null,0]
[129,null,null,null,null,0]
[130,null,null,null,null,{"$f":"LEN(B134)+LEN(C134)","v":0}]
[{"$f":"A134+1","v":131},null,null,null,null,0]
[132,null,null,null,null,0]
[133,null,null,null,null,0]
[134,null,null,null,null,0]
[135,null,null,null,null,0]
[136,null,null,null,null,0]
[137,null,null,null,null,0]
[138,null,null,null,null,0]
[139,null,null,null,null,0]
[140,null,null,null,null,0]
[141,null,null,null,null,0]
[142,null,null,null,null,0]
[143,null,null,null,null,0]
[144,null,null,null,null,0]
[145,null,null,null,null,0]
[146,null,null,null,null,0]
[147,null,null,null,null,0]
[148,null,null,null,null,0]
[149,null,null,null,null,0]
[150,null,null,null,null,0]
[151,null,null,null,null,0]
[152,null,null,null,null,0]
[153,null,null,null,null,0]
[154,null,null,null,null,0]
[155,null,null,null,null,0]
[156,null,null,null,null,0]
[157,null,null,null,null,0]
[158,null,null,null,null,0]
[159,null,null,null,null,0]
[160,null,null,null,null,0]
[161,null,null,null,null,0]
[162,null,null,null,null,0]
[163,null,null,null,null,0]
[164,null,null,null,null,0]
[165,null,null,null,null,0]
[166,null,null,null,null,0]
[167,null,null,null,null,0]
[168,null,null,null,null,0]
[169,null,null,null,null,0]
[170,null,null,null,null,0]
[171,null,null,null,null,0]
[172,null,null,null,null,0]
[173,null,null,null,null,0]
[174,null,null,null,null,0]
[175,null,null,null,null,0]
[176,null,null,null,null,0]
[177,null,null,null,null,0]
[178,null,null,null,null,0]
[179,null,null,null,null,0]
[180,null,null,null,null,0]
[181,null,null,null,null,0]
[182,null,null,null,null,0]
[183,null,null,null,null,0]
[184,null,null,null,null,0]
[185,null,null,null,null,0]
[186,null,null,null,null,0]
[187,null,null,null,null,0]
[188,null,null,null,null,0]
[189,null,null,null,null,0]
[190,null,null,null,null,0]
[191,null,null,null,null,0]
[192,null,null,null,null,0]
[193,null,null,null,null,0]
[194,null,null,null,null,{"$f":"LEN(B198)+LEN(C198)","v":0}]
[{"$f":"A198+1","v":195},null,null,null,null,0]
[196,null,null,null,null,0]
[197,null,null,null,null,0]
[198,null,null,null,null,0]
[199,null,null,null,null,0]
[200,null,null,null,null,0]
[201,null,null,null,null,0]
[202,null,null,null,null,0]
[203,null,null,null,null,0]
[204,null,null,null,null,0]
[205,null,null,null,null,0]
[206,null,null,null,null,0]
[207,null,null,null,null,0]
[208,null,null,null,null,0]
[209,null,null,null,null,0]
[210,null,null,null,null,0]
[211,null,null,null,null,0]
[212,null,null,null,null,0]
[213,null,null,null,null,0]
[214,null,null,null,null,0]
[215,null,null,null,null,0]
[216,null,null,null,null,0]
[217,null,null,null,null,0]
[218,null,null,null,null,0]
[219,null,null,null,null,0]
[220,null,null,null,null,0]
[221,null,null,null,null,0]
[222,null,null,null,null,0]
[223,null,null,null,null,0]
[224,null,null,null,null,0]
[225,null,null,null,null,0]
[226,null,null,null,null,0]
[227,null,null,null,null,0]
[228,null,null,null,null,0]
[229,null,null,null,null,0]
[230,null,null,null,null,0]
[231,null,null,null,null,0]
[232,null,null,null,null,0]
[233,null,null,null,null,0]
[234,null,null,null,null,0]
[235,null,null,null,null,0]
[236,null,null,null,null,0]
[237,null,null,null,null,0]
[238,null,null,null,null,0]
[239,null,null,null,null,0]
[240,null,null,null,null,0]
[241,null,null,null,null,0]
[242,null,null,null,null,0]
[243,null,null,null,null,0]
[244,null,null,null,null,0]
[245,null,null,null,null,0]
[246,null,null,null,null,0]
[247,null,null,null,null,0]
[248,null,null,null,null,0]
[249,null,null,null,null,0]
[250,null,null,null,null,0]
[251,null,null,null,null,0]
[252,null,null,null,null,0]
[253,null,null,null,null,0]
[254,null,null,null,null,0]
[255,null,null,null,null,0]
[256,null,null,null,null,0]
[257,null,null,null,null,0]
[258,null,null,null,null,{"$f":"LEN(B262)+LEN(C262)","v":0}]
[{"$f":"A262+1","v":259},null,null,null,null,0]
[260,null,null,null,null,0]
[261,null,null,null,null,0]
[262,null,null,null,null,0]
[263,null,null,null,null,0]
[264,null,null,null,null,0]
[265,null,null,null,null,0]
[266,null,null,null,null,0]
[267,null,null,null,null,0]
[268,null,null,null,null,0]
[269,null,null,null,null,0]
[270,null,null,null,null,0]
[271,null,null,null,null,0]
[272,null,null,null,null,0]
[273,null,null,null,null,0]
[274,null,null,null,null,0]
[275,null,null,null,null,0]
[276,null,null,null,null,0]
[277,null,null,null,null,0]
[278,null,null,null,null,0]
[279,null,null,null,null,0]
[280,null,null,null,null,0]
[281,null,null,null,null,0]
[282,null,null,null,null,0]
[283,null,null,null,null,0]
[284,null,null,null,null,0]
[285,null,null,null,null,0]
[286,null,null,null,null,0]
[287,null,null,null,null,0]
[288,null,null,null,null,0]
[289,null,null,null,null,0]
[290,null,null,null,null,0]
[291,null,null,null,null,0]
[292,null,null,null,null,0]
[293,null,null,null,null,0]
[294,null,null,null,null,0]
[295,null,null,null,null,0]
[296,null,null,null,null,0]
[297,null,null,null,null,0]
[298,null,null,null,null,0]
[299,null,null,null,null,0]
[300,null,null,null,null,0]
[301,null,null,null,null,0]
[302,null,null,null,null,0]
[303,null,null,null,null,0]
[304,null,null,null,null,0]
[305,null,null,null,null,0]
[306,null,null,null,null,0]
[307,null,null,null,null,0]
[308,null,null,null,null,0]
[309,null,null,null,null,0]
[310,null,null,null,null,0]
[311,null,null,null,null,0]
[312,null,null,null,null,0]
[313,null,null,null,null,0]
[314,null,null,null,null,0]
[315,null,null,null,null,0]
[316,null,null,null,null,0]
[317,null,null,null,null,0]
[318,null,null,null,null,0]
[319,null,null,null,null,0]
[320,null,null,null,null,0]
[321,null,null,null,null,0]
[322,null,null,null,null,{"$f":"LEN(B326)+LEN(C326)","v":0}]
[{"$f":"A326+1","v":323},null,null,null,null,0]
[324,null,null,null,null,0]
[325,null,null,null,null,0]
[326,null,null,null,null,0]
[327,null,null,null,null,0]
[328,null,null,null,null,0]
[329,null,null,null,null,0]
[330,null,null,null,null,0]
[331,null,null,null,null,0]
[332,null,null,null,null,0]
[333,null,null,null,null,0]
[334,null,null,null,null,0]
[335,null,null,null,null,0]
[336,null,null,null,null,0]
[337,null,null,null,null,0]
[338,null,null,null,null,0]
[339,null,null,null,null,0]
[340,null,null,null,null,0]
[341,null,null,null,null,0]
[342,null,null,null,null,0]
[343,null,null,null,null,0]
[344,null,null,null,null,0]
[345,null,null,null,null,0]
[346,null,null,null,null,0]
[347,null,null,null,null,0]
[348,null,null,null,null,0]
[349,null,null,null,null,0]
[350,null,null,null,null,0]
[351,null,null,null,null,0]
[352,null,null,null,null,0]
[353,null,null,null,null,0]
[354,null,null,null,null,0]
[355,null,null,null,null,0]
[356,null,null,null,null,0]
[357,null,null,null,null,0]
[358,null,null,null,null,0]
[359,null,null,null,null,0]
[360,null,null,null,null,0]
[361,null,null,null,null,0]
[362,null,null,null,null,0]
[363,null,null,null,null,0]
[364,null,null,null,null,0]
[365,null,null,null,null,0]
[366,null,null,null,null,0]
[367,null,null,null,null,0]
[368,null,null,null,null,0]
[369,null,null,null,null,0]
[370,null,null,null,null,0]
[371,null,null,null,null,0]
[372,null,null,null,null,0]
[373,null,null,null,null,0]
[374,null,null,null,null,0]
[375,null,null,null,null,0]
[376,null,null,null,null,0]
[377,null,null,null,null,0]
[378,null,null,null,null,0]
[379,null,null,null,null,0]
[380,null,null,null,null,0]
[381,null,null,null,null,0]
[382,null,null,null,null,0]
[383,null,null,null,null,0]
[384,null,null,null,null,0]
[385,null,null,null,null,0]
[386,null,null,null,null,{"$f":"LEN(B390)+LEN(C390)","v":0}]
[{"$f":"A390+1","v":387},null,null,null,null,0]
[388,null,null,null,null,0]
[389,null,null,null,null,0]
[390,null,null,null,null,0]
[391,null,null,null,null,0]
[392,null,null,null,null,0]
[393,null,null,null,null,0]
[394,null,null,null,null,0]
[395,null,null,null,null,0]
[396,null,null,null,null,0]
[397,null,null,null,null,0]
[398,null,null,null,null,0]
[399,null,null,null,null,0]
[400,null,null,null,null,0]
[401,null,null,null,null,0]
[402,null,null,null,null,0]
[403,null,null,null,null,0]
[404,null,null,null,null,0]
[405,null,null,null,null,0]
[406,null,null,null,null,0]
[407,null,null,null,null,0]
[408,null,null,null,null,0]
[409,null,null,null,null,0]
[410,null,null,null,null,0]
[411,null,null,null,null,0]
[412,null,null,null,null,0]
[413,null,null,null,null,0]
[414,null,null,null,null,0]
[415,null,null,null,null,0]
[416,null,null,null,null,0]
[417,null,null,null,null,0]
[418,null,null,null,null,0]
[419,null,null,null,null,0]
[420,null,null,null,null,0]
[421,null,null,null,null,0]
[422,null,null,null,null,0]
[423,null,null,null,null,0]
[424,null,null,null,null,0]
[425,null,null,null,null,0]
[426,null,null,null,null,0]
[427,null,null,null,null,0]
[428,null,null,null,null,0]
[429,null,null,null,null,0]
[430,null,null,null,null,0]
[431,null,null,null,null,0]
[432,null,null,null,null,0]
[433,null,null,null,null,0]
[434,null,null,null,null,0]
[435,null,null,null,null,0]
[436,null,null,null,null,0]
[437,null,null,null,null,0]
[438,null,null,null,null,0]
[439,null,null,null,null,0]
[440,null,null,null,null,0]
[441,null,null,null,null,0]
[442,null,null,null,null,0]
[443,null,null,null,null,0]
[444,null,null,null,null,0]
[445,null,null,null,null,0]
[446,null,null,null,null,0]
[447,null,null,null,null,0]
[448,null,null,null,null,0]
[449,null,null,null,null,0]
[450,null,null,null,null,{"$f":"LEN(B454)+LEN(C454)","v":0}]
[{"$f":"A454+1","v":451},null,null,null,null,0]
[452,null,null,null,null,0]
[453,null,null,null,null,0]
[454,null,null,null,null,0]
[455,null,null,null,null,0]
[456,null,null,null,null,0]
[457,null,null,null,null,0]
[458,null,null,null,null,0]
[459,null,null,null,null,0]
[460,null,null,null,null,0]
[461,null,null,null,null,0]
[462,null,null,null,null,0]
[463,null,null,null,null,0]
[464,null,null,null,null,0]
[465,null,null,null,null,0]
[466,null,null,null,null,0]
[467,null,null,null,null,0]
[468,null,null,null,null,0]
[469,null,null,null,null,0]
[470,null,null,null,null,0]
[471,null,null,null,null,0]
[472,null,null,null,null,0]
[473,null,null,null,null,0]
[474,null,null,null,null,0]
[475,null,null,null,null,0]
[476,null,null,null,null,0]
[477,null,null,null,null,0]
[478,null,null,null,null,0]
[479,null,null,null,null,0]
[480,null,null,null,null,0]
[481,null,null,null,null,0]
[482,null,null,null,null,0]
[483,null,null,null,null,0]
[484,null,null,null,null,0]
[485,null,null,null,null,0]
[486,null,null,null,null,0]
[487,null,null,null,null,0]
[488,null,null,null,null,0]
[489,null,null,null,null,0]
[490,null,null,null,null,0]
[491,null,null,null,null,0]
[492,null,null,null,null,0]
[493,null,null,null,null,0]
[494,null,null,null,null,0]
[495,null,null,null,null,0]
[496,null,null,null,null,0]
[497,null,null,null,null,0]
[498,null,null,null,null,0]
[499,null,null,null,null,0]
[500,null,null,null,null,0]
[501,null,null,null,null,0]
[502,null,null,null,null,0]
[503,null,null,null,null,0]
[504,null,null,null,null,0]
[505,null,null,null,null,0]
[506,null,null,null,null,0]
[507,null,null,null,null,0]
[508,null,null,null,null,0]
[509,null,null,null,null,0]
[510,null,null,null,null,0]
[511,null,null,null,null,0]
[512,null,null,null,null,0]
[513,null,null,null,null,0]
[514,null,null,null,null,{"$f":"LEN(B518)+LEN(C518)","v":0}]
[{"$f":"A518+1","v":515},null,null,null,null,0]
[516,null,null,null,null,0]
[517,null,null,null,null,0]
[518,null,null,null,null,0]
[519,null,null,null,null,0]
[520,null,null,null,null,0]
[521,null,null,null,null,0]
[522,null,null,null,null,0]
[523,null,null,null,null,0]
[524,null,null,null,null,0]
[525,null,null,null,null,0]
[526,null,null,null,null,0]
[527,null,null,null,null,0]
[528,null,null,null,null,0]
[529,null,null,null,null,0]
[530,null,null,null,null,0]
[531,null,null,null,null,0]
[532,null,null,null,null,0]
[533,null,null,null,null,0]
[534,null,null,null,null,0]
[535,null,null,null,null,0]
[536,null,null,null,null,0]
[537,null,null,null,null,0]
[538,null,null,null,null,0]
[539,null,null,null,null,0]
[540,null,null,null,null,0]
[541,null,null,null,null,0]
[542,null,null,null,null,0]
[543,null,null,null,null,0]
[544,null,null,null,null,0]
[545,null,null,null,null,0]
[546,null,null,null,null,0]
[547,null,null,null,null,0]
[548,null,null,null,null,0]
[549,null,null,null,null,0]
[550,null,null,null,null,0]
[551,null,null,null,null,0]
[552,null,null,null,null,0]
[553,null,null,null,null,0]
[554,null,null,null,null,0]
[555,null,null,null,null,0]
[556,null,null,null,null,0]
[557,null,null,null,null,0]
[558,null,null,null,null,0]
[559,null,null,null,null,0]
[560,null,null,null,null,0]
[561,null,null,null,null,0]
[562,null,null,null,null,0]
[563,null,null,null,null,0]
[564,null,null,null,null,0]
[565,null,null,null,null,0]
[566,null,null,null,null,0]
[567,null,null,null,null,0]
[568,null,null,null,null,0]
[569,null,null,null,null,0]
[570,null,null,null,null,0]
[571,null,null,null,null,0]
[572,null,null,null,null,0]
[573,null,null,null,null,0]
[574,null,null,null,null,0]
[575,null,null,null,null,0]
[576,null,null,null,null,0]
[577,null,null,null,null,0]
[578,null,null,null,null,{"$f":"LEN(B582)+LEN(C582)","v":0}]
[{"$f":"A582+1","v":579},null,null,null,null,0]
[580,null,null,null,null,0]
[581,null,null,null,null,0]
[582,null,null,null,null,0]
[583,null,null,null,null,0]
[584,null,null,null,null,0]
[585,null,null,null,null,0]
[586,null,null,null,null,0]
[587,null,null,null,null,0]
[588,null,null,null,null,0]
[589,null,null,null,null,0]
[590,null,null,null,null,0]
[591,null,null,null,null,0]
[592,null,null,null,null,0]
[593,null,null,null,null,0]
[594,null,null,null,null,0]
[595,null,null,null,null,0]
[596,null,null,null,null,0]
[597,null,null,null,null,0]
[598,null,null,null,null,0]
[599,null,null,null,null,0]
[600,null,null,null,null,0]
[601,null,null,null,null,0]
[602,null,null,null,null,0]
[603,null,null,null,null,0]
[604,null,null,null,null,0]
[605,null,null,null,null,0]
[606,null,null,null,null,0]
[607,null,null,null,null,0]
[608,null,null,null,null,0]
[609,null,null,null,null,0]
[610,null,null,null,null,0]
[611,null,null,null,null,0]
[612,null,null,null,null,0]
[613,null,null,null,null,0]
[614,null,null,null,null,0]
[615,null,null,null,null,0]
[616,null,null,null,null,0]
[617,null,null,null,null,0]
[618,null,null,null,null,0]
[619,null,null,null,null,0]
[620,null,null,null,null,0]
[621,null,null,null,null,0]
[622,null,null,null,null,0]
[623,null,null,null,null,0]
[624,null,null,null,null,0]
[625,null,null,null,null,0]
[626,null,null,null,null,0]
[627,null,null,null,null,0]
[628,null,null,null,null,0]
[629,null,null,null,null,0]
[630,null,null,null,null,0]
[631,null,null,null,null,0]
[632,null,null,null,null,0]
[633,null,null,null,null,0]
[634,null,null,null,null,0]
[635,null,null,null,null,0]
[636,null,null,null,null,0]
[637,null,null,null,null,0]
[638,null,null,null,null,0]
[639,null,null,null,null,0]
[640,null,null,null,null,0]
[641,null,null,null,null,0]
[642,null,null,null,null,{"$f":"LEN(B646)+LEN(C646)","v":0}]
[{"$f":"A646+1","v":643},null,null,null,null,0]
[644,null,null,null,null,0]
[645,null,null,null,null,0]
[646,null,null,null,null,0]
[647,null,null,null,null,0]
[648,null,null,null,null,0]
[649,null,null,null,null,0]
[650,null,null,null,null,0]
[651,null,null,null,null,0]
[652,null,null,null,null,0]
[653,null,null,null,null,0]
[654,null,null,null,null,0]
[655,null,null,null,null,0]
[656,null,null,null,null,0]
[657,null,null,null,null,0]
[658,null,null,null,null,0]
[659,null,null,null,null,0]
[660,null,null,null,null,0]
[661,null,null,null,null,0]
[662,null,null,null,null,0]
[663,null,null,null,null,0]
[664,null,null,null,null,0]
[665,null,null,null,null,0]
[666,null,null,null,null,0]
[667,null,null,null,null,0]
[668,null,null,null,null,0]
[669,null,null,null,null,0]
[670,null,null,null,null,0]
[671,null,null,null,null,0]
[672,null,null,null,null,0]
[673,null,null,null,null,0]
[674,null,null,null,null,0]
[675,null,null,null,null,0]
[676,null,null,null,null,0]
[677,null,null,null,null,0]
[678,null,null,null,null,0]
[679,null,null,null,null,0]
[680,null,null,null,null,0]
[681,null,null,null,null,0]
[682,null,null,null,null,0]
[683,null,null,null,null,0]
[684,null,null,null,null,0]
[685,null,null,null,null,0]
[686,null,null,null,null,0]
[687,null,null,null,null,0]
[688,null,null,null,null,0]
[689,null,null,null,null,0]
[690,null,null,null,null,0]
[691,null,null,null,null,0]
[692,null,null,null,null,0]
[693,null,null,null,null,0]
[694,null,null,null,null,0]
[695,null,null,null,null,0]
[696,null,null,null,null,0]
[697,null,null,null,null,0]
[698,null,null,null,null,0]
[699,null,null,null,null,0]
[700,null,null,null,null,0]
[701,null,null,null,null,0]
[702,null,null,null,null,0]
[703,null,null,null,null,0]
[704,null,null,null,null,0]
[705,null,null,null,null,0]
[706,null,null,null,null,{"$f":"LEN(B710)+LEN(C710)","v":0}]
[{"$f":"A710+1","v":707},null,null,null,null,0]
[708,null,null,null,null,0]
[709,null,null,null,null,0]
[710,null,null,null,null,0]
[711,null,null,null,null,0]
[712,null,null,null,null,0]
[713,null,null,null,null,0]
[714,null,null,null,null,0]
[715,null,null,null,null,0]
[716,null,null,null,null,0]
[717,null,null,null,null,0]
[718,null,null,null,null,0]
[719,null,null,null,null,0]
[720,null,null,null,null,0]
[721,null,null,null,null,0]
[722,null,null,null,null,0]
[723,null,null,null,null,0]
[724,null,null,null,null,0]
[725,null,null,null,null,0]
[726,null,null,null,null,0]
[727,null,null,null,null,0]
[728,null,null,null,null,0]
[729,null,null,null,null,0]
[730,null,null,null,null,0]
[731,null,null,null,null,0]
[732,null,null,null,null,0]
[733,null,null,null,null,0]
[734,null,null,null,null,0]
[735,null,null,null,null,0]
[736,null,null,null,null,0]
[737,null,null,null,null,0]
[738,null,null,null,null,0]
[739,null,null,null,null,0]
[740,null,null,null,null,0]
[741,null,null,null,null,0]
[742,null,null,null,null,0]
[743,null,null,null,null,0]
[744,null,null,null,null,0]
[745,null,null,null,null,0]
[746,null,null,null,null,0]
[747,null,null,null,null,0]
[748,null,null,null,null,0]
[749,null,null,null,null,0]
[750,null,null,null,null,0]
[751,null,null,null,null,0]
[752,null,null,null,null,0]
[753,null,null,null,null,0]
[754,null,null,null,null,0]
[755,null,null,null,null,0]
[756,null,null,null,null,0]
[757,null,null,null,null,0]
[758,null,null,null,null,0]
[759,null,null,null,null,0]
[760,null,null,null,null,0]
[761,null,null,null,null,0]
[762,null,null,null,null,0]
[763,null,null,null,null,0]
[764,null,null,null,null,0]
[765,null,null,null,null,0]
[766,null,null,null,null,0]
[767,null,null,null,null,0]
[768,null,null,null,null,0]
[769,null,null,null,null,0]
[770,null,null,null,null,{"$f":"LEN(B774)+LEN(C774)","v":0}]
[{"$f":"A774+1","v":771},null,null,null,null,0]
[772,null,null,null,null,0]
[773,null,null,null,null,0]
[774,null,null,null,null,0]
[775,null,null,null,null,0]
[776,null,null,null,null,0]
[777,null,null,null,null,0]
[778,null,null,null,null,0]
[779,null,null,null,null,0]
[780,null,null,null,null,0]
[781,null,null,null,null,0]
[782,null,null,null,null,0]
[783,null,null,null,null,0]
[784,null,null,null,null,0]
[785,null,null,null,null,0]
[786,null,null,null,null,0]
[787,null,null,null,null,0]
[788,null,null,null,null,0]
[789,null,null,null,null,0]
[790,null,null,null,null,0]
[791,null,null,null,null,0]
[792,null,null,null,null,0]
[793,null,null,null,null,0]
[794,null,null,null,null,0]
[795,null,null,null,null,0]
[796,null,null,null,null,0]
[797,null,null,null,null,0]
[798,null,null,null,null,0]
[799,null,null,null,null,0]
[800,null,null,null,null,0]
[801,null,null,null,null,0]
[802,null,null,null,null,0]
[803,null,null,null,null,0]
[804,null,null,null,null,0]
[805,null,null,null,null,0]
[806,null,null,null,null,0]
[807,null,null,null,null,0]
[808,null,null,null,null,0]
[809,null,null,null,null,0]
[810,null,null,null,null,0]
[811,null,null,null,null,0]
[812,null,null,null,null,0]
[813,null,null,null,null,0]
[814,null,null,null,null,0]
[815,null,null,null,null,0]
[816,null,null,null,null,0]
[817,null,null,null,null,0]
[818,null,null,null,null,0]
[819,null,null,null,null,0]
[820,null,null,null,null,0]
[821,null,null,null,null,0]
[822,null,null,null,null,0]
[823,null,null,null,null,0]
[824,null,null,null,null,0]
[825,null,null,null,null,0]
[826,null,null,null,null,0]
[827,null,null,null,null,0]
[828,null,null,null,null,0]
[829,null,null,null,null,0]
[830,null,null,null,null,0]
[831,null,null,null,null,0]
[832,null,null,null,null,0]
[833,null,null,null,null,0]
[834,null,null,null,null,{"$f":"LEN(B838)+LEN(C838)","v":0}]
[{"$f":"A838+1","v":835},null,null,null,null,0]
[836,null,null,null,null,0]
[837,null,null,null,null,0]
[838,null,null,null,null,0]
[839,null,null,null,null,0]
[840,null,null,null,null,0]
[841,null,null,null,null,0]
[842,null,null,null,null,0]
[843,null,null,null,null,0]
[844,null,null,null,null,0]
[845,null,null,null,null,0]
[846,null,null,null,null,0]
[847,null,null,null,null,0]
[848,null,null,null,null,0]
[849,null,null,null,null,0]
[850,null,null,null,null,0]
[851,null,null,null,null,0]
[852,null,null,null,null,0]
[853,null,null,null,null,0]
[854,null,null,null,null,0]
[855,null,null,null,null,0]
[856,null,null,null,null,0]
[857,null,null,null,null,0]
[858,null,null,null,null,0]
[859,null,null,null,null,0]
[860,null,null,null,null,0]
[861,null,null,null,null,0]
[862,null,null,null,null,0]
[863,null,null,null,null,0]
[864,null,null,null,null,0]
[865,null,null,null,null,0]
[866,null,null,null,null,0]
[867,null,null,null,null,0]
[868,null,null,null,null,0]
[869,null,null,null,null,0]
[870,null,null,null,null,0]
[871,null,null,null,null,0]
[872,null,null,null,null,0]
[873,null,null,null,null,0]
[874,null,null,null,null,0]
[875,null,null,null,null,0]
[876,null,null,null,null,0]
[877,null,null,null,null,0]
[878,null,null,null,null,0]
[879,null,null,null,null,0]
[880,null,null,null,null,0]
[881,null,null,null,null,0]
[882,null,null,null,null,0]
[883,null,null,null,null,0]
[884,null,null,null,null,0]
[885,null,null,null,null,0]
[886,null,null,null,null,0]
[887,null,null,null,null,0]
[888,null,null,null,null,0]
[889,null,null,null,null,0]
[890,null,null,null,null,0]
[891,null,null,null,null,0]
[892,null,null,null,null,0]
[893,null,null,null,null,0]
[894,null,null,null,null,0]
[895,null,null,null,null,0]
[896,null,null,null,null,0]
[897,null,null,null,null,0]
[898,null,null,null,null,{"$f":"LEN(B902)+LEN(C902)","v":0}]
[{"$f":"A902+1","v":899},null,null,null,null,0]
[900,null,null,null,null,0]
[901,null,null,null,null,0]
[902,null,null,null,null,0]
[903,null,null,null,null,0]
[904,null,null,null,null,0]
[905,null,null,null,null,0]
[906,null,null,null,null,0]
[907,null,null,null,null,0]
[908,null,null,null,null,0]
[909,null,null,null,null,0]
[910,null,null,null,null,0]
[911,null,null,null,null,0]
[912,null,null,null,null,0]
[913,null,null,null,null,0]
[914,null,null,null,null,0]
[915,null,null,null,null,0]
[916,null,null,null,null,0]
[917,null,null,null,null,0]
[918,null,null,null,null,0]
[919,null,null,null,null,0]
[920,null,null,null,null,0]
[921,null,null,null,null,0]
[922,null,null,null,null,0]
[923,null,null,null,null,0]
[924,null,null,null,null,0]
[925,null,null,null,null,0]
[926,null,null,null,null,0]
[927,null,null,null,null,0]
[928,null,null,null,null,0]
[929,null,null,null,null,0]
[930,null,null,null,null,0]
[931,null,null,null,null,0]
[932,null,null,null,null,0]
[933,null,null,null,null,0]
[934,null,null,null,null,0]
[935,null,null,null,null,0]
[936,null,null,null,null,0]
[937,null,null,null,null,0]
[938,null,null,null,null,0]
[939,null,null,null,null,0]
[940,null,null,null,null,0]
[941,null,null,null,null,0]
[942,null,null,null,null,0]
[943,null,null,null,null,0]
[944,null,null,null,null,0]
[945,null,null,null,null,0]
[946,null,null,null,null,0]
[947,null,null,null,null,0]
[948,null,null,null,null,0]
[949,null,null,null,null,0]
[950,null,null,null,null,0]
[951,null,null,null,null,0]
[952,null,null,null,null,0]
[953,null,null,null,null,0]
[954,null,null,null,null,0]
[955,null,null,null,null,0]
[956,null,null,null,null,0]
[957,null,null,null,null,0]
[958,null,null,null,null,0]
[959,null,null,null,null,0]
[960,null,null,null,null,0]
[961,null,null,null,null,0]
[962,null,null,null,null,{"$f":"LEN(B966)+LEN(C966)","v":0}]
[{"$f":"A966+1","v":963},null,null,null,null,0]
[964,null,null,null,null,0]
[965,null,null,null,null,0]
[966,null,null,null,null,0]
[967,null,null,null,null,0]
[968,null,null,null,null,0]
[969,null,null,null,null,0]
[970,null,null,null,null,0]
[971,null,null,null,null,0]
[972,null,null,null,null,0]
[973,null,null,null,null,0]
[974,null,null,null,null,0]
[975,null,null,null,null,0]
[976,null,null,null,null,0]
[977,null,null,null,null,0]
[978,null,null,null,null,0]
[979,null,null,null,null,0]
[980,null,null,null,null,0]
[981,null,null,null,null,0]
[982,null,null,null,null,0]
[983,null,null,null,null,0]
[984,null,null,null,null,0]
[985,null,null,null,null,0]
[986,null,null,null,null,0]
[987,null,null,null,null,0]
[988,null,null,null,null,0]
[989,null,null,null,null,0]
[990,null,null,null,null,0]
[991,null,null,null,null,0]
[992,null,null,null,null,0]
[993,null,null,null,null,0]
[994,null,null,null,null,0]
[995,null,null,null,null,0]
[996,null,null,null,null,0]
[997,null,null,null,null,0]
[998,null,null,null,null,0]
[999,null,null,null,null,0]
[1000,null,null,null,null,0]
[null,1]